[Event "2026 Biel Blitz Open"]
[Site "Biel, CH"]
[Date "2026.07.19"]
[Round "12"]
[White "Shukhman, Anna"]
[Black "Safarli, Eltaj"]
[Result "1/2-1/2"]
[Board "2"]
[TimeControl "180+2"]
[WhiteFideId "54180058"]
[BlackFideId "13402129"]
[WhiteElo "2392"]
[BlackElo "2619"]
[WhiteTitle "WGM"]
[BlackTitle "GM"]
[WhiteClock "0:00:12"]
[BlackClock "0:00:15"]
[Variant "Standard"]
[EndDate "2026.07.19"]
[EndTime "16:02:20"]

1. e4 {[%clk 0:03:03]}  c5 {[%clk 0:03:03]} 2. Nf3 {[%clk 0:03:04]}  e6 {[%clk 0:03:04]} 3. d4 {[%clk 0:03:05]}  cxd4 {[%clk 0:03:05]}
4. Nxd4 {[%clk 0:03:06]}  Nc6 {[%clk 0:03:06]} 5. Nc3 {[%clk 0:03:07]}  Bc5 {[%clk 0:03:07]} 6. Nb3 {[%clk 0:02:40]}  Bb6 {[%clk 0:03:07]}
7. Qg4 {[%clk 0:02:25]}  Nf6 {[%clk 0:03:08]} 8. Qg3 {[%clk 0:02:26]}  O-O {[%clk 0:02:51]} 9. Bg5 {[%clk 0:02:17]}  Qc7 {[%clk 0:00:49]}
10. Bf4 {[%clk 0:01:54]}  Qd8 {[%clk 0:00:35]} 11. Bg5 {[%clk 0:01:55]}  Qc7 {[%clk 0:00:37]} 12. Bf4 {[%clk 0:01:35]}  Qd8 {[%clk 0:00:37]}
13. Bd6 {[%clk 0:01:36]}  Re8 {[%clk 0:00:36]} 14. O-O-O {[%clk 0:01:36]}  a5 {[%clk 0:00:28]} 15. e5 {[%clk 0:01:27]}  Nh5 {[%clk 0:00:28]}
16. Qg4 {[%clk 0:01:20]}  g6 {[%clk 0:00:28]} 17. Ne4 {[%clk 0:01:18]}  a4 {[%clk 0:00:27]} 18. Nbd2 {[%clk 0:01:12]}  a3 {[%clk 0:00:28]}
19. b3 {[%clk 0:01:07]}  f5 {[%clk 0:00:29]} 20. exf6 {[%clk 0:01:05]}  Nxf6 {[%clk 0:00:31]} 21. Qf3 {[%clk 0:00:54]}  Bd4 {[%clk 0:00:10]}
22. c3 {[%clk 0:00:55]}  Nxe4 {[%clk 0:00:11]} 23. Nxe4 {[%clk 0:00:51]}  Bg7 {[%clk 0:00:13]} 24. h4 {[%clk 0:00:49]}  Qa5 {[%clk 0:00:13]}
25. h5 {[%clk 0:00:47]}  Qf5 {[%clk 0:00:14]} 26. hxg6 {[%clk 0:00:44]}  hxg6 {[%clk 0:00:15]} 27. Qe3 {[%clk 0:00:34]}  Ne5 {[%clk 0:00:15]}
28. f3 {[%clk 0:00:29]}  Nf7 {[%clk 0:00:16]} 29. g4 {[%clk 0:00:29]}  Qa5 {[%clk 0:00:15]} 30. Bb4 {[%clk 0:00:22]}  Qc7 {[%clk 0:00:17]}
31. g5 {[%clk 0:00:18]}  d5 {[%clk 0:00:08]} 32. Nf6+ {[%clk 0:00:19]}  Bxf6 {[%clk 0:00:09]} 33. gxf6 {[%clk 0:00:20]}  Qe5 {[%clk 0:00:10]}
34. Qxe5 {[%clk 0:00:18]}  Nxe5 {[%clk 0:00:11]} 35. f4 {[%clk 0:00:17]}  Ng4 {[%clk 0:00:11]} 36. Bd3 {[%clk 0:00:16]}  Kf7 {[%clk 0:00:09]}
37. Rh7+ {[%clk 0:00:14]}  Kxf6 {[%clk 0:00:10]} 38. Rg1 {[%clk 0:00:15]}  e5 {[%clk 0:00:11]} 39. fxe5+ {[%clk 0:00:15]}  Nxe5 {[%clk 0:00:12]}
40. Rf1+ {[%clk 0:00:15]}  Bf5 {[%clk 0:00:13]} 41. Bxf5 {[%clk 0:00:16]}  gxf5 {[%clk 0:00:15]} 42. Rh6+ {[%clk 0:00:16]}  Kg5 {[%clk 0:00:10]}
43. Rb6 {[%clk 0:00:17]}  Nd3+ {[%clk 0:00:08]} 44. Kd2 {[%clk 0:00:18]}  Nxb4 {[%clk 0:00:09]} 45. Rxb4 {[%clk 0:00:18]}  Re7 {[%clk 0:00:11]}
46. Rd4 {[%clk 0:00:15]}  Rae8 {[%clk 0:00:09]} 47. Rf2 {[%clk 0:00:16]}  Re5 {[%clk 0:00:07]} 48. Rg2+ {[%clk 0:00:11]}  Kf6 {[%clk 0:00:09]}
49. Rf2 {[%clk 0:00:11]}  Ke6 {[%clk 0:00:07]} 50. Rb4 {[%clk 0:00:12]}  Re7 {[%clk 0:00:08]} 51. Rb6+ {[%clk 0:00:13]}  Kf7 {[%clk 0:00:09]}
52. Rh2 {[%clk 0:00:13]}  Kg7 {[%clk 0:00:06]} 53. Rg2+ {[%clk 0:00:14]}  Kf7 {[%clk 0:00:08]} 54. Rh2 {[%clk 0:00:11]}  f4 {[%clk 0:00:04]}
55. Rh7+ {[%clk 0:00:08]}  Ke8 {[%clk 0:00:06]} 56. Rh8+ {[%clk 0:00:08]}  Kf7 {[%clk 0:00:08]} 57. Rh7+ {[%clk 0:00:08]}  Kg8 {[%clk 0:00:06]}
58. Rxe7 {[%clk 0:00:04]}  Rxe7 {[%clk 0:00:07]} 59. Rf6 {[%clk 0:00:04]}  Rf7 {[%clk 0:00:07]} 60. Rg6+ {[%clk 0:00:03]}  Rg7 {[%clk 0:00:08]}
61. Rf6 {[%clk 0:00:04]}  Rg2+ {[%clk 0:00:05]} 62. Kd3 {[%clk 0:00:04]}  Rxa2 {[%clk 0:00:06]} 63. Rxf4 {[%clk 0:00:04]}  Ra1 {[%clk 0:00:05]}
64. Kc2 {[%clk 0:00:05]}  Ra2+ {[%clk 0:00:05]} 65. Kd3 {[%clk 0:00:05]}  b5 {[%clk 0:00:05]} 66. Rg4+ {[%clk 0:00:04]}  Kf7 {[%clk 0:00:06]}
67. Rf4+ {[%clk 0:00:03]}  Ke6 {[%clk 0:00:07]} 68. Rf8 {[%clk 0:00:04]}  Rb2 {[%clk 0:00:07]} 69. b4 {[%clk 0:00:05]}  Ra2 {[%clk 0:00:04]}
70. Ra8 {[%clk 0:00:05]}  Ra1 {[%clk 0:00:05]} 71. Kc2 {[%clk 0:00:06]}  Ke5 {[%clk 0:00:06]} 72. Ra7 {[%clk 0:00:04]}  Ke4 {[%clk 0:00:07]}
73. Re7+ {[%clk 0:00:04]}  Kf5 {[%clk 0:00:09]} 74. Ra7 {[%clk 0:00:05]}  Ke5 {[%clk 0:00:09]} 75. Re7+ {[%clk 0:00:06]}  Kf4 {[%clk 0:00:04]}
76. Ra7 {[%clk 0:00:06]}  Ke4 {[%clk 0:00:04]} 77. Re7+ {[%clk 0:00:07]}  Kf5 {[%clk 0:00:05]} 78. Ra7 {[%clk 0:00:08]}  Ke5 {[%clk 0:00:06]}
79. Re7+ {[%clk 0:00:08]}  Kd6 {[%clk 0:00:07]} 80. Ra7 {[%clk 0:00:09]}  Kc6 {[%clk 0:00:05]} 81. Kb3 {[%clk 0:00:07]}  Rb1+ {[%clk 0:00:06]}
82. Kc2 {[%clk 0:00:06]}  Rb2+ {[%clk 0:00:07]} 83. Kc1 {[%clk 0:00:08]}  Rb3 {[%clk 0:00:03]} 84. Kc2 {[%clk 0:00:09]}  Rb2+ {[%clk 0:00:05]}
85. Kc1 {[%clk 0:00:10]}  Rh2 {[%clk 0:00:05]} 86. Rxa3 {[%clk 0:00:11]}  d4 {[%clk 0:00:06]} 87. cxd4 {[%clk 0:00:09]}  Kd5 {[%clk 0:00:07]}
88. Rg3 {[%clk 0:00:09]}  Kxd4 {[%clk 0:00:06]} 89. Kb1 {[%clk 0:00:09]}  Kc4 {[%clk 0:00:07]} 90. Rf3 {[%clk 0:00:10]}  Kxb4 {[%clk 0:00:08]}
91. Rf1 {[%clk 0:00:10]}  Ka4 {[%clk 0:00:08]} 92. Ka1 {[%clk 0:00:11]}  b4 {[%clk 0:00:09]} 93. Re1 {[%clk 0:00:12]}  Ka3 {[%clk 0:00:10]}
94. Rf1 {[%clk 0:00:13]}  b3 {[%clk 0:00:11]} 95. Re1 {[%clk 0:00:11]}  Rc2 {[%clk 0:00:12]} 96. Rf1 {[%clk 0:00:10]}  Rc1+ {[%clk 0:00:13]}
97. Rxc1 {[%clk 0:00:11]}  b2+ {[%clk 0:00:15]} 98. Kb1 {[%clk 0:00:12]}  bxc1=R+ {[%clk 0:00:15]} 99. Kxc1 {[%clk 0:00:12]} 1/2-1/2

[Event "2026 Biel Blitz Open"]
[Site "Biel, CH"]
[Date "2026.07.19"]
[Round "12"]
[White "Ling, Chenxuan"]
[Black "Ghosh, Diptayan"]
[Result "0-1"]
[Board "3"]
[TimeControl "180+2"]
[WhiteFideId "30983118"]
[BlackFideId "5045207"]
[WhiteElo "2235"]
[BlackElo "2530"]
[WhiteTitle "CM"]
[BlackTitle "GM"]
[WhiteClock "0:00:28"]
[BlackClock "0:00:23"]
[Variant "Standard"]
[EndDate "2026.07.19"]
[EndTime "16:01:59"]

1. d4 {[%clk 0:03:03]}  Nf6 {[%clk 0:03:03]} 2. c4 {[%clk 0:03:04]}  e6 {[%clk 0:03:04]} 3. Nc3 {[%clk 0:03:04]}  Bb4 {[%clk 0:03:05]}
4. Qc2 {[%clk 0:03:04]}  d6 {[%clk 0:03:06]} 5. e4 {[%clk 0:03:03]}  c5 {[%clk 0:03:07]} 6. e5 {[%clk 0:02:57]}  cxd4 {[%clk 0:02:55]}
7. exf6 {[%clk 0:02:57]}  dxc3 {[%clk 0:02:55]} 8. bxc3 {[%clk 0:02:35]}  Qxf6 {[%clk 0:02:55]} 9. Bd2 {[%clk 0:02:36]}  Bc5 {[%clk 0:02:54]}
10. Nf3 {[%clk 0:02:36]}  h6 {[%clk 0:02:51]} 11. Bd3 {[%clk 0:02:36]}  Nc6 {[%clk 0:02:47]} 12. O-O {[%clk 0:02:36]}  O-O {[%clk 0:02:47]}
13. Rfe1 {[%clk 0:02:33]}  b6 {[%clk 0:02:30]} 14. Be4 {[%clk 0:02:31]}  Bb7 {[%clk 0:02:29]} 15. Rad1 {[%clk 0:02:25]}  Rac8 {[%clk 0:02:24]}
16. h3 {[%clk 0:02:10]}  Rc7 {[%clk 0:02:22]} 17. Re2 {[%clk 0:02:05]}  Rfc8 {[%clk 0:02:09]} 18. g4 {[%clk 0:01:56]}  Ne5 {[%clk 0:01:57]}
19. Nxe5 {[%clk 0:01:56]}  dxe5 {[%clk 0:01:28]} 20. Rde1 {[%clk 0:01:42]}  Bxe4 {[%clk 0:01:21]} 21. Qxe4 {[%clk 0:01:42]}  Rd7 {[%clk 0:01:20]}
22. Kg2 {[%clk 0:01:35]}  Rcd8 {[%clk 0:01:17]} 23. Be3 {[%clk 0:01:35]}  Bxe3 {[%clk 0:01:17]} 24. Rxe3 {[%clk 0:01:35]}  Rc7 {[%clk 0:01:14]}
25. Rf3 {[%clk 0:01:35]}  Qe7 {[%clk 0:01:11]} 26. Qxe5 {[%clk 0:01:34]}  Rxc4 {[%clk 0:01:09]} 27. Re4 {[%clk 0:01:33]}  Rxe4 {[%clk 0:00:58]}
28. Qxe4 {[%clk 0:01:33]}  Qc7 {[%clk 0:00:56]} 29. h4 {[%clk 0:01:23]}  Rd5 {[%clk 0:00:47]} 30. Rd3 {[%clk 0:01:17]}  Rxd3 {[%clk 0:00:30]}
31. Qxd3 {[%clk 0:01:17]}  g6 {[%clk 0:00:30]} 32. f3 {[%clk 0:01:14]}  Qc5 {[%clk 0:00:28]} 33. Qd2 {[%clk 0:01:06]}  Kg7 {[%clk 0:00:28]}
34. Qd3 {[%clk 0:01:05]}  b5 {[%clk 0:00:27]} 35. Kg3 {[%clk 0:00:58]}  a5 {[%clk 0:00:27]} 36. Kg2 {[%clk 0:00:48]}  Qd5 {[%clk 0:00:26]}
37. Qe2 {[%clk 0:00:30]}  Kf6 {[%clk 0:00:20]} 38. Kg3 {[%clk 0:00:28]}  Qe5+ {[%clk 0:00:21]} 39. Qxe5+ {[%clk 0:00:27]}  Kxe5 {[%clk 0:00:23]}
40. Kf2 {[%clk 0:00:28]}  Kf4 {[%clk 0:00:23]} 0-1

[Event "2026 Biel Blitz Open"]
[Site "Biel, CH"]
[Date "2026.07.19"]
[Round "12"]
[White "Gloeckler, Christian"]
[Black "Thorfinnsson, Bjorn"]
[Result "1-0"]
[Board "4"]
[TimeControl "180+2"]
[WhiteFideId "34608966"]
[BlackFideId "2300982"]
[WhiteElo "2513"]
[BlackElo "2396"]
[WhiteTitle "IM"]
[BlackTitle "IM"]
[WhiteClock "0:00:57"]
[BlackClock "0:00:08"]
[Variant "Standard"]
[EndDate "2026.07.19"]
[EndTime "15:57:18"]

1. e4 {[%clk 0:03:03]}  e5 {[%clk 0:03:04]} 2. Nf3 {[%clk 0:03:04]}  Nc6 {[%clk 0:03:05]} 3. Bb5 {[%clk 0:03:05]}  Nge7 {[%clk 0:03:06]}
4. O-O {[%clk 0:03:03]}  d6 {[%clk 0:03:08]} 5. c3 {[%clk 0:03:00]}  Bd7 {[%clk 0:03:09]} 6. d4 {[%clk 0:02:53]}  Ng6 {[%clk 0:03:10]}
7. Be3 {[%clk 0:02:43]}  Be7 {[%clk 0:03:11]} 8. a4 {[%clk 0:02:36]}  O-O {[%clk 0:03:10]} 9. d5 {[%clk 0:02:35]}  Nb8 {[%clk 0:03:11]}
10. Bxd7 {[%clk 0:02:35]}  Nxd7 {[%clk 0:03:12]} 11. a5 {[%clk 0:02:37]}  a6 {[%clk 0:02:59]} 12. b4 {[%clk 0:02:37]}  f5 {[%clk 0:02:46]}
13. exf5 {[%clk 0:02:37]}  Rxf5 {[%clk 0:02:47]} 14. c4 {[%clk 0:02:36]}  Nf6 {[%clk 0:02:23]} 15. Ng5 {[%clk 0:02:29]}  Qd7 {[%clk 0:02:22]}
16. Ne6 {[%clk 0:02:27]}  Nf8 {[%clk 0:02:14]} 17. g4 {[%clk 0:02:19]}  Rf4 {[%clk 0:02:04]} 18. Bxf4 {[%clk 0:02:17]}  exf4 {[%clk 0:02:03]}
19. Re1 {[%clk 0:02:14]}  Nxe6 {[%clk 0:01:50]} 20. Rxe6 {[%clk 0:02:14]}  c6 {[%clk 0:01:49]} 21. Qf3 {[%clk 0:02:01]}  cxd5 {[%clk 0:01:38]}
22. cxd5 {[%clk 0:02:02]}  Rc8 {[%clk 0:01:37]} 23. Nd2 {[%clk 0:02:03]}  Rc2 {[%clk 0:01:37]} 24. Qd3 {[%clk 0:01:51]}  Rb2 {[%clk 0:00:57]}
25. Rae1 {[%clk 0:01:37]}  Bf8 {[%clk 0:00:54]} 26. g5 {[%clk 0:01:33]}  Ng4 {[%clk 0:00:51]} 27. Nc4 {[%clk 0:01:13]}  Rxb4 {[%clk 0:00:33]}
28. h3 {[%clk 0:01:04]}  Ne5 {[%clk 0:00:25]} 29. Nxe5 {[%clk 0:01:00]}  dxe5 {[%clk 0:00:26]} 30. R6xe5 {[%clk 0:00:57]}  Ra4 {[%clk 0:00:26]}
31. d6 {[%clk 0:00:55]}  Rb4 {[%clk 0:00:07]} 32. Qd5+ {[%clk 0:00:56]}  Qf7 {[%clk 0:00:08]} 33. d7 {[%clk 0:00:57]} 1-0

[Event "2026 Biel Blitz Open"]
[Site "Biel, CH"]
[Date "2026.07.19"]
[Round "12"]
[White "Gautier, Anand"]
[Black "Aronyak Ghosh"]
[Result "0-1"]
[Board "5"]
[TimeControl "180+2"]
[WhiteFideId "26010186"]
[BlackFideId "25072846"]
[WhiteElo "2198"]
[BlackElo "2488"]
[WhiteTitle "FM"]
[BlackTitle "IM"]
[WhiteClock "0:00:09"]
[BlackClock "0:00:11"]
[Variant "Standard"]
[EndDate "2026.07.19"]
[EndTime "16:00:13"]

1. e4 {[%clk 0:03:04]}  c6 {[%clk 0:03:03]} 2. d4 {[%clk 0:03:04]}  d5 {[%clk 0:03:03]} 3. Nc3 {[%clk 0:03:04]}  dxe4 {[%clk 0:03:02]}
4. Nxe4 {[%clk 0:03:05]}  Nf6 {[%clk 0:03:02]} 5. Nxf6+ {[%clk 0:03:05]}  exf6 {[%clk 0:03:03]} 6. c3 {[%clk 0:03:06]}  a5 {[%clk 0:03:03]}
7. Bd3 {[%clk 0:03:06]}  g6 {[%clk 0:03:03]} 8. Ne2 {[%clk 0:03:01]}  Bg7 {[%clk 0:03:02]} 9. O-O {[%clk 0:03:01]}  O-O {[%clk 0:03:02]}
10. a4 {[%clk 0:02:55]}  Na6 {[%clk 0:02:56]} 11. Be3 {[%clk 0:02:43]}  Nc7 {[%clk 0:02:52]} 12. f3 {[%clk 0:02:41]}  Nd5 {[%clk 0:02:37]}
13. Bf2 {[%clk 0:02:42]}  Bh6 {[%clk 0:02:38]} 14. Re1 {[%clk 0:02:36]}  Re8 {[%clk 0:02:33]} 15. Ng3 {[%clk 0:02:34]}  Be6 {[%clk 0:02:32]}
16. Qc2 {[%clk 0:02:30]}  f5 {[%clk 0:02:29]} 17. Bf1 {[%clk 0:02:14]}  Qc7 {[%clk 0:02:17]} 18. c4 {[%clk 0:02:03]}  Nb4 {[%clk 0:02:14]}
19. Qc3 {[%clk 0:02:02]}  Rad8 {[%clk 0:02:06]} 20. Rad1 {[%clk 0:01:59]}  Bg7 {[%clk 0:02:05]} 21. Qc1 {[%clk 0:01:50]}  Re7 {[%clk 0:01:50]}
22. b3 {[%clk 0:01:51]}  Red7 {[%clk 0:01:50]} 23. d5 {[%clk 0:01:31]}  cxd5 {[%clk 0:01:48]} 24. cxd5 {[%clk 0:01:31]}  Qxc1 {[%clk 0:01:05]}
25. Rxc1 {[%clk 0:01:32]}  Bxd5 {[%clk 0:01:03]} 26. Bb6 {[%clk 0:00:57]}  Ra8 {[%clk 0:01:03]} 27. Bb5 {[%clk 0:00:44]}  Bc6 {[%clk 0:01:01]}
28. Red1 {[%clk 0:00:42]}  Bxb5 {[%clk 0:00:52]} 29. axb5 {[%clk 0:00:43]}  Nd5 {[%clk 0:00:51]} 30. Bf2 {[%clk 0:00:36]}  Rad8 {[%clk 0:00:50]}
31. h4 {[%clk 0:00:22]}  Bf6 {[%clk 0:00:44]} 32. h5 {[%clk 0:00:22]}  Kg7 {[%clk 0:00:44]} 33. hxg6 {[%clk 0:00:23]}  fxg6 {[%clk 0:00:42]}
34. Rd3 {[%clk 0:00:16]}  Kf7 {[%clk 0:00:32]} 35. Kf1 {[%clk 0:00:14]}  Nb4 {[%clk 0:00:29]} 36. Rxd7+ {[%clk 0:00:13]}  Rxd7 {[%clk 0:00:30]}
37. Bb6 {[%clk 0:00:13]}  Nd3 {[%clk 0:00:20]} 38. Rd1 {[%clk 0:00:10]}  Bc3 {[%clk 0:00:16]} 39. Ne2 {[%clk 0:00:11]}  Bb4 {[%clk 0:00:17]}
40. Nf4 {[%clk 0:00:06]}  Ne5 {[%clk 0:00:16]} 41. Rc1 {[%clk 0:00:06]}  g5 {[%clk 0:00:16]} 42. Nh3 {[%clk 0:00:04]}  h6 {[%clk 0:00:17]}
43. f4 {[%clk 0:00:06]}  Nd3 {[%clk 0:00:15]} 44. Rd1 {[%clk 0:00:07]}  g4 {[%clk 0:00:14]} 45. Nf2 {[%clk 0:00:08]}  Nc5 {[%clk 0:00:15]}
46. Rc1 {[%clk 0:00:05]}  Nxb3 {[%clk 0:00:15]} 47. Rc8 {[%clk 0:00:04]}  Nd2+ {[%clk 0:00:12]} 48. Ke2 {[%clk 0:00:05]}  Ne4 {[%clk 0:00:12]}
49. Nxe4 {[%clk 0:00:04]}  Re7 {[%clk 0:00:13]} 50. g3 {[%clk 0:00:03]}  Rxe4+ {[%clk 0:00:14]} 51. Kd3 {[%clk 0:00:04]}  Re6 {[%clk 0:00:15]}
52. Bd4 {[%clk 0:00:05]}  Be1 {[%clk 0:00:13]} 53. Ra8 {[%clk 0:00:04]}  Bxg3 {[%clk 0:00:12]} 54. Rxa5 {[%clk 0:00:05]}  Bxf4 {[%clk 0:00:12]}
55. b6 {[%clk 0:00:07]}  Kg6 {[%clk 0:00:10]} 56. Ra7 {[%clk 0:00:07]}  Re7 {[%clk 0:00:11]} 57. Ra8 {[%clk 0:00:07]}  g3 {[%clk 0:00:08]}
58. Rg8+ {[%clk 0:00:07]}  Kh5 {[%clk 0:00:08]} 59. Bc5 {[%clk 0:00:07]}  Rd7+ {[%clk 0:00:07]} 60. Ke2 {[%clk 0:00:08]}  Bg5 {[%clk 0:00:08]}
61. Kf3 {[%clk 0:00:08]}  Rd3+ {[%clk 0:00:09]} 62. Kg2 {[%clk 0:00:09]}  Kg4 {[%clk 0:00:10]} 63. Be7 {[%clk 0:00:08]}  Rd2+ {[%clk 0:00:11]}
64. Kf1 {[%clk 0:00:09]}  Kf3 {[%clk 0:00:11]} 0-1

[Event "2026 Biel Blitz Open"]
[Site "Biel, CH"]
[Date "2026.07.19"]
[Round "12"]
[White "Alexakis, Dimitris"]
[Black "Arjun Kalyan"]
[Result "0-1"]
[Board "6"]
[TimeControl "180+2"]
[WhiteFideId "4277023"]
[BlackFideId "35018701"]
[WhiteElo "2459"]
[BlackElo "2451"]
[WhiteTitle "GM"]
[BlackTitle "GM"]
[WhiteClock "0:00:02"]
[BlackClock "0:00:42"]
[Variant "Standard"]
[EndDate "2026.07.19"]
[EndTime "15:58:23"]

1. e4 {[%clk 0:03:02]}  e5 {[%clk 0:03:03]} 2. Nf3 {[%clk 0:03:02]}  Nc6 {[%clk 0:03:04]} 3. Bb5 {[%clk 0:03:01]}  a6 {[%clk 0:03:05]}
4. Ba4 {[%clk 0:03:02]}  Nf6 {[%clk 0:03:05]} 5. Bxc6 {[%clk 0:03:02]}  dxc6 {[%clk 0:03:06]} 6. d3 {[%clk 0:03:03]}  Bd6 {[%clk 0:03:03]}
7. Nbd2 {[%clk 0:03:02]}  Be6 {[%clk 0:02:54]} 8. b3 {[%clk 0:03:01]}  Nd7 {[%clk 0:02:48]} 9. Bb2 {[%clk 0:02:57]}  c5 {[%clk 0:02:44]}
10. Nf1 {[%clk 0:02:43]}  Qe7 {[%clk 0:02:22]} 11. Ne3 {[%clk 0:02:43]}  g6 {[%clk 0:02:21]} 12. Qe2 {[%clk 0:02:39]}  b5 {[%clk 0:02:16]}
13. h4 {[%clk 0:02:22]}  h6 {[%clk 0:02:02]} 14. h5 {[%clk 0:02:21]}  g5 {[%clk 0:02:03]} 15. Nh2 {[%clk 0:02:15]}  Nf6 {[%clk 0:01:53]}
16. Nhf1 {[%clk 0:02:05]}  c4 {[%clk 0:01:41]} 17. dxc4 {[%clk 0:01:59]}  Nxe4 {[%clk 0:01:30]} 18. O-O-O {[%clk 0:01:54]}  O-O {[%clk 0:01:20]}
19. Nd5 {[%clk 0:01:32]}  Bxd5 {[%clk 0:01:20]} 20. cxd5 {[%clk 0:01:32]}  f5 {[%clk 0:01:15]} 21. Ne3 {[%clk 0:01:26]}  Qh7 {[%clk 0:01:05]}
22. g4 {[%clk 0:01:24]}  f4 {[%clk 0:00:57]} 23. Nf5 {[%clk 0:01:22]}  Rxf5 {[%clk 0:00:58]} 24. Qxe4 {[%clk 0:00:50]}  Rf7 {[%clk 0:01:00]}
25. Rhe1 {[%clk 0:00:47]}  Qxe4 {[%clk 0:00:56]} 26. Rxe4 {[%clk 0:00:48]}  f3 {[%clk 0:00:57]} 27. Bxe5 {[%clk 0:00:44]}  Re8 {[%clk 0:00:55]}
28. Rde1 {[%clk 0:00:44]}  Rfe7 {[%clk 0:00:49]} 29. Bxd6 {[%clk 0:00:41]}  Rxe4 {[%clk 0:00:56]} 30. Rxe4 {[%clk 0:00:42]}  Rxe4 {[%clk 0:00:57]}
31. Bxc7 {[%clk 0:00:42]}  Kf7 {[%clk 0:00:55]} 32. Bg3 {[%clk 0:00:38]}  Rxg4 {[%clk 0:00:55]} 33. Kd2 {[%clk 0:00:39]}  Re4 {[%clk 0:00:47]}
34. Kd3 {[%clk 0:00:36]}  Re2 {[%clk 0:00:46]} 35. c4 {[%clk 0:00:36]}  bxc4+ {[%clk 0:00:47]} 36. bxc4 {[%clk 0:00:37]}  Rxa2 {[%clk 0:00:46]}
37. c5 {[%clk 0:00:38]}  Ra1 {[%clk 0:00:42]} 38. c6 {[%clk 0:00:36]}  Rc1 {[%clk 0:00:38]} 39. Ke4 {[%clk 0:00:17]}  a5 {[%clk 0:00:38]}
40. Kxf3 {[%clk 0:00:12]}  a4 {[%clk 0:00:39]} 41. Bd6 {[%clk 0:00:08]}  a3 {[%clk 0:00:41]} 42. Be5 {[%clk 0:00:03]}  a2 {[%clk 0:00:42]}
43. c7 {[%clk 0:00:04]}  Rxc7 {[%clk 0:00:42]} 44. Ke4 {[%clk 0:00:02]}  Rc1 {[%clk 0:00:42]} 0-1

[Event "2026 Biel Blitz Open"]
[Site "Biel, CH"]
[Date "2026.07.19"]
[Round "12"]
[White "Savitha Shri B"]
[Black "Mohammad Nubairshah Shaikh"]
[Result "1-0"]
[Board "7"]
[TimeControl "180+2"]
[WhiteFideId "35061887"]
[BlackFideId "5053196"]
[WhiteElo "2161"]
[BlackElo "2316"]
[WhiteTitle "IM"]
[BlackTitle "IM"]
[WhiteClock "0:01:10"]
[BlackClock "0:00:10"]
[Variant "Standard"]
[EndDate "2026.07.19"]
[EndTime "15:56:37"]

1. e4 {[%clk 0:03:04]}  c6 {[%clk 0:03:04]} 2. d4 {[%clk 0:03:05]}  d5 {[%clk 0:03:05]} 3. e5 {[%clk 0:03:06]}  Bf5 {[%clk 0:03:07]}
4. Nf3 {[%clk 0:03:07]}  e6 {[%clk 0:03:08]} 5. Be2 {[%clk 0:03:09]}  Ne7 {[%clk 0:03:08]} 6. c3 {[%clk 0:03:07]}  h6 {[%clk 0:02:56]}
7. O-O {[%clk 0:02:57]}  Bh7 {[%clk 0:02:57]} 8. a4 {[%clk 0:02:46]}  a5 {[%clk 0:02:58]} 9. Na3 {[%clk 0:02:42]}  Nd7 {[%clk 0:02:54]}
10. Nc2 {[%clk 0:02:42]}  Ng6 {[%clk 0:02:53]} 11. Bd3 {[%clk 0:02:23]}  Be7 {[%clk 0:02:54]} 12. Ne3 {[%clk 0:02:24]}  O-O {[%clk 0:02:54]}
13. Ng4 {[%clk 0:02:17]}  c5 {[%clk 0:02:43]} 14. Re1 {[%clk 0:02:07]}  Rc8 {[%clk 0:02:42]} 15. Bd2 {[%clk 0:02:08]}  Qb6 {[%clk 0:02:29]}
16. Rb1 {[%clk 0:02:02]}  cxd4 {[%clk 0:02:24]} 17. cxd4 {[%clk 0:02:03]}  Nb8 {[%clk 0:02:25]} 18. h4 {[%clk 0:01:50]}  Nxh4 {[%clk 0:02:19]}
19. Bxh7+ {[%clk 0:01:49]}  Kxh7 {[%clk 0:02:20]} 20. Nxh4 {[%clk 0:01:42]}  Bxh4 {[%clk 0:02:21]} 21. Be3 {[%clk 0:01:18]}  h5 {[%clk 0:02:01]}
22. Nf6+ {[%clk 0:01:13]}  Bxf6 {[%clk 0:00:28]} 23. Qxh5+ {[%clk 0:01:13]}  Kg8 {[%clk 0:00:29]} 24. exf6 {[%clk 0:01:14]}  Nd7 {[%clk 0:00:10]}
25. fxg7 {[%clk 0:01:09]}  Kxg7 {[%clk 0:00:11]} 26. Bh6+ {[%clk 0:01:09]}  Kg8 {[%clk 0:00:10]} 27. Qg5+ {[%clk 0:01:10]} 1-0

[Event "2026 Biel Blitz Open"]
[Site "Biel, CH"]
[Date "2026.07.19"]
[Round "12"]
[White "Elmi, Saad Abobaker"]
[Black "Rappazzo, Johannes"]
[Result "0-1"]
[Board "8"]
[TimeControl "180+2"]
[WhiteFideId "1553259"]
[BlackFideId "1340069"]
[WhiteElo "2409"]
[BlackElo "2032"]
[WhiteTitle "IM"]
[BlackTitle "FM"]
[WhiteClock "0:00:04"]
[BlackClock "0:00:11"]
[Variant "Standard"]
[EndDate "2026.07.19"]
[EndTime "15:58:34"]

1. c4 {[%clk 0:03:03]}  Nf6 {[%clk 0:03:03]} 2. Nc3 {[%clk 0:03:05]}  e5 {[%clk 0:03:05]} 3. g3 {[%clk 0:03:06]}  d5 {[%clk 0:03:06]}
4. cxd5 {[%clk 0:03:07]}  Nxd5 {[%clk 0:03:07]} 5. Bg2 {[%clk 0:03:06]}  Nb6 {[%clk 0:03:06]} 6. d3 {[%clk 0:03:09]}  Be7 {[%clk 0:03:10]}
7. Nf3 {[%clk 0:03:09]}  Nc6 {[%clk 0:03:11]} 8. O-O {[%clk 0:03:10]}  O-O {[%clk 0:03:12]} 9. Be3 {[%clk 0:03:11]}  Re8 {[%clk 0:03:14]}
10. Rc1 {[%clk 0:03:12]}  Bf8 {[%clk 0:03:15]} 11. a3 {[%clk 0:03:04]}  Nd4 {[%clk 0:03:12]} 12. Nd2 {[%clk 0:02:34]}  c6 {[%clk 0:03:08]}
13. Nce4 {[%clk 0:02:21]}  Bg4 {[%clk 0:02:58]} 14. Bxd4 {[%clk 0:02:17]}  exd4 {[%clk 0:02:59]} 15. Re1 {[%clk 0:02:13]}  h6 {[%clk 0:02:42]}
16. Bf3 {[%clk 0:01:51]}  Bxf3 {[%clk 0:02:35]} 17. Nxf3 {[%clk 0:01:45]}  Qd5 {[%clk 0:02:31]} 18. b4 {[%clk 0:01:30]}  a5 {[%clk 0:02:31]}
19. Nc5 {[%clk 0:01:31]}  axb4 {[%clk 0:02:18]} 20. axb4 {[%clk 0:01:32]}  Bxc5 {[%clk 0:02:07]} 21. Rxc5 {[%clk 0:01:29]}  Qd6 {[%clk 0:02:08]}
22. Qb3 {[%clk 0:01:31]}  Nd7 {[%clk 0:01:51]} 23. Rc2 {[%clk 0:01:24]}  Ne5 {[%clk 0:01:31]} 24. Nd2 {[%clk 0:01:23]}  Rad8 {[%clk 0:01:21]}
25. b5 {[%clk 0:01:16]}  Qg6 {[%clk 0:00:56]} 26. Rec1 {[%clk 0:01:06]}  Qh5 {[%clk 0:00:56]} 27. Nf1 {[%clk 0:01:07]}  cxb5 {[%clk 0:00:53]}
28. Rb2 {[%clk 0:00:59]}  Nc6 {[%clk 0:00:34]} 29. Qxb5 {[%clk 0:00:35]}  Qxb5 {[%clk 0:00:34]} 30. Rxb5 {[%clk 0:00:36]}  Rxe2 {[%clk 0:00:35]}
31. Rxb7 {[%clk 0:00:37]}  Ne5 {[%clk 0:00:36]} 32. Rcc7 {[%clk 0:00:35]}  Ra8 {[%clk 0:00:30]} 33. Re7 {[%clk 0:00:25]}  Raa2 {[%clk 0:00:17]}
34. Rb8+ {[%clk 0:00:06]}  Kh7 {[%clk 0:00:18]} 35. Rbe8 {[%clk 0:00:04]}  Nf3+ {[%clk 0:00:19]} 36. Kg2 {[%clk 0:00:04]}  Rxf2+ {[%clk 0:00:20]}
37. Kh3 {[%clk 0:00:05]}  Ng5+ {[%clk 0:00:16]} 38. Kg4 {[%clk 0:00:05]}  f5+ {[%clk 0:00:15]} 39. Kh5 {[%clk 0:00:04]}  Rxh2+ {[%clk 0:00:13]}
40. Nxh2 {[%clk 0:00:04]}  Rxh2# {[%clk 0:00:11]} 0-1